bitfinex-derivatives/quotes_ETHF0:USTF0_20251203
["timestamp","ask_amount","ask_price","bid_price","bid_amount"]
[1764721583760,0.7477,2989.6,2989.5,1.6849]
[1764721583960,0.4637,2990.0,2989.5,2.1274]
[1764721584262,1.5544,2989.6,2989.5,0.9039]
[1764721584464,0.4637,2989.5,2989.4,4.09e-06]
[1764721585073,1.2114,2989.5,2989.4,1.51770409]
[1764721585274,0.4637,2989.5,2989.4,4.09e-06]
[1764721585967,0.7477,2989.5,2989.4,1.51770409]
[1764721586179,4.7622,2989.8,2989.7,0.7367]
[1764721586470,0.8067,2989.6,2989.5,0.9039]
[1764721586778,0.7477,2989.6,2989.5,1.6849]
[1764721587076,1.5544,2989.6,2989.5,1.6849]
[1764721587668,3.2078,2989.8,2989.4,4.09e-06]
[1764721587877,3.6715,2989.5,2989.4,4.09e-06]
[1764721588567,4.43025773,2989.5,2989.4,4.09e-06]
[1764721598370,5.97285773,2989.5,2989.4,0.81270409]
[1764721598577,5.97285773,2989.5,2989.4,1.58370409]
[1764721598786,4.75975773,2989.5,2989.4,1.58370409]
[1764721598987,4.75975773,2989.5,2989.4,1.75091409]
[1764721599183,3.6845,2989.5,2989.4,4.09e-06]
[1764721599376,4.44538756,2989.5,2989.4,4.09e-06]
[1764721599575,3.6845,2989.5,2989.4,4.09e-06]
[1764721600181,3.2078,2989.5,2989.4,1.58370409]
[1764721600390,3.2078,2989.5,2989.4,1.75091409]
[1764721601088,2.0193,2989.5,2989.4,0.16721409]
[1764721601386,2.0193,2989.5,2989.4,0.97991409]
[1764721601583,2.0193,2989.5,2989.4,0.16721409]
[1764721601786,0.4767,2989.5,2989.4,4.09e-06]
[1764721602080,1.23756387,2989.5,2989.4,4.09e-06]
[1764721604685,1.5426,2989.3,2989.2,0.00238715]
[1764721604889,5.51126387,2989.3,2989.2,0.00238715]
[1764721605190,7.65923576,2989.3,2989.2,0.00238715]
[1764721605588,1.5426,2988.6,2988.5,4.0205]
[1764721605978,1.5426,2988.6,2988.5,0.00413981]
[1764721607290,0.7932,2988.6,2988.5,1.58783981]
[1764721607689,1.5426,2988.6,2988.5,0.81683981]
[1764721608391,0.7932,2988.6,2988.5,1.58783981]
[1764721608690,5.2271,2989.0,2988.9,0.8127]
[1764721608891,5.9894031,2989.0,2988.9,0.8127]
[1764721609290,5.9894031,2989.0,2988.5,0.32853981]
[1764721609487,0.7932,2988.7,2988.6,1.75095]
[1764721609691,1.5426,2988.7,2988.6,1.75095]
[1764721609886,0.7932,2988.7,2988.6,1.75095]
[1764721610696,2.0193,2989.0,2988.9,0.8127]
[1764721610898,2.78136448,2989.0,2988.9,0.8127]
[1764721611687,1.5426,2988.7,2988.6,1.75095]
[1764721612596,1.5426,2988.7,2988.6,0.16725]
[1764721613791,0.7932,2988.7,2988.6,1.75095]
[1764721614491,5.2271,2989.0,2988.9,0.8127]
[1764721614998,0.7932,2988.7,2988.6,1.75095]
[1764721615190,4.7504,2989.3,2989.2,0.8127]
[1764721615397,0.7932,2988.8,2988.7,1.75094]
[1764721615598,1.5426,2988.8,2988.7,1.75094]
[1764721615792,1.5426,2989.3,2989.2,0.8127]
[1764721616000,1.5426,2988.9,2988.8,1.5837]
[1764721616184,0.4767,2989.5,2988.8,4.95874]
[1764721616497,0.7932,2988.9,2988.8,1.5837]
[1764721617891,1.5426,2988.9,2988.8,1.5837]
[1764721618396,0.4767,2989.5,2988.9,0.16723]
[1764721618787,2.0193,2989.5,2989.4,0.8127]
[1764721619299,2.0193,2989.5,2989.0,0.61703]
[1764721619597,0.7932,2989.1,2989.0,2.20073]
[1764721620189,0.4767,2989.5,2989.0,2.20073]
[1764721620384,0.7932,2989.1,2989.0,2.20073]
[1764721620594,1.5426,2989.1,2989.0,1.75093]
[1764721621100,0.7932,2989.1,2989.0,1.75093]
[1764721621299,2.0193,2989.5,2989.4,0.8127]
[1764721621489,4.7504,2989.6,2989.5,1.5837]
[1764721621688,2.0193,2989.5,2989.4,0.97991]
[1764721621884,2.0193,2989.5,2989.4,1.75091]
[1764721622099,2.0193,2989.5,2989.4,0.16721]
[1764721622295,1.5426,2989.0,2988.9,1.5837]
[1764721622501,2.0193,2989.0,2988.9,1.5837]
[1764721622693,0.7932,2989.0,2988.9,4.7915]
[1764721622892,1.5426,2989.0,2988.9,1.5837]
[1764721623189,4.6964,2989.3,2989.2,0.7528]
[1764721623390,4.6964,2989.3,2989.2,1.5247]
[1764721623592,1.64961059,2990.0,2989.8,0.7528]
[1764721623593,3.9416,2989.9,2989.8,0.7528]
[1764721623790,5.45844588,2989.9,2989.8,0.7528]
[1764721624302,4.6964,2989.9,2989.8,0.7528]
[1764721625297,1.4886,2989.6,2989.5,1.9745]
[1764721625599,1.4886,2989.6,2989.5,0.1672]
[1764721626001,1.4886,2989.6,2989.5,1.6919]
[1764721626303,1.4886,2989.6,2989.5,0.1672]
[1764721626504,1.4886,2989.6,2989.5,1.6919]
[1764721626898,4.6964,2989.9,2989.8,1.5247]
[1764721627098,4.6964,2989.9,2989.8,0.7528]
[1764721627300,1.49251164,2990.1,2990.0,1.5247]
[1764721627495,0.73771164,2990.1,2990.0,1.5247]
[1764721627697,1.49251164,2990.1,2990.0,1.5247]
[1764721627896,0.73771164,2990.1,2990.0,1.5247]
[1764721628194,1.49251164,2990.1,2990.0,1.5247]
[1764721628391,1.49251164,2990.1,2990.0,1.69187]
[1764721628591,0.73771164,2990.1,2990.0,1.69187]
[1764721628799,0.00391164,2990.1,2990.0,2.16337]
[1764721631001,0.00501387,2990.3,2990.0,2.16337]
[1764721631002,0.00501387,2990.3,2990.2,1.69186]
[1764721631309,1.4886,2990.4,2990.3,1.69186]
[1764721631516,3.2078,2990.9,2990.3,1.69186]
[1764721632008,0.7338,2990.4,2990.3,1.69186]
[1764721632205,1.49196117,2990.4,2990.3,0.91996]
[1764721632603,1.4886,2990.2,2990.1,0.00501387]
[1764721635509,1.4886,2989.4,2989.3,3.9606]
[1764721636007,1.4886,2989.4,2989.3,4.7325]
[1764721637307,3.6535,2990.0,2989.3,4.7325]
[1764721637507,0.7338,2989.4,2989.3,4.7325]
[1764721638012,0.7338,2989.4,2989.3,1.5247]
[1764721638314,1.4886,2989.4,2989.3,1.5247]
[1764721639513,0.7338,2989.4,2989.3,1.69191]
[1764721639712,3.6535,2990.0,2989.3,1.69191]
[1764721639913,0.7338,2989.4,2989.3,1.69191]
[1764721640712,1.4886,2989.4,2989.3,1.69191]
[1764721640914,1.4886,2989.4,2989.3,0.92001]
[1764721641512,1.4886,2989.4,2989.3,0.16721]
[1764721642012,1.4886,2989.1,2989.0,3.9606]
[1764721642404,1.4886,2989.1,2989.0,4.7325]
[1764721642714,0.7338,2989.1,2989.0,5.1021]
[1764721643009,0.7338,2989.1,2989.0,5.26933]
[1764721643515,1.9343,2989.5,2989.4,1.5247]
[1764721643817,0.7338,2989.5,2989.4,1.5247]
[1764721644005,4.6964,2989.7,2989.6,1.5247]
[1764721644308,0.7338,2989.7,2989.6,1.5247]
[1764721644513,1.4886,2989.7,2989.6,0.7528]
[1764721644706,1.4886,2989.6,2989.5,0.92]
[1764721644905,1.4886,2989.6,2989.5,0.1672]
[1764721645310,1.4886,2989.6,2989.5,0.92]
[1764721645610,0.4457,2989.5,2989.1,4.14692]
[1764721645914,1.9343,2989.5,2989.4,1.5247]
[1764721648215,1.9343,2989.5,2989.4,1.69191]
[1764721649118,1.9343,2989.5,2989.4,0.92001]
[1764721649319,1.9343,2989.5,2989.4,1.69191]
[1764721650120,1.9343,2989.5,2989.4,0.92001]
[1764721650416,1.9343,2989.5,2989.4,0.16721]
[1764721650815,1.9343,2989.5,2989.4,0.92001]
[1764721651216,1.9343,2989.5,2989.4,0.16721]
[1764721651416,1.9343,2989.5,2989.4,0.92001]
[1764721651620,1.9343,2989.5,2989.4,1.69191]
[1764721652112,1.9343,2989.5,2989.4,0.16721]
[1764721652425,1.9343,2989.5,2989.4,0.92001]
[1764721652719,1.9343,2989.5,2989.4,0.16721]
[1764721654017,0.7338,2989.5,2989.4,1.70771]
[1764721654221,1.5437,2989.5,2989.4,1.70771]
[1764721655218,2.027,2989.5,2989.4,1.70771]
[1764721655419,2.027,2989.5,2989.4,0.92001]
[1764721655623,2.027,2989.5,2989.4,1.70771]
[1764721655824,1.5437,2989.5,2989.4,1.70771]
[1764721656125,0.7338,2989.5,2989.4,1.70771]
[1764721656315,1.5113,2989.5,2989.4,1.70771]
[1764721657825,0.7338,2989.5,2989.4,1.70771]
[1764721658018,4.0081,2989.9,2989.8,0.7739]
[1764721658219,4.7856,2989.9,2989.8,0.7739]
[1764721658926,1.5778,2989.7,2989.6,1.67629]
[1764721659418,1.5778,2989.7,2989.6,0.94109]
[1764721659820,1.5778,2989.7,2989.6,1.67629]
[1764721660417,0.8003,2989.7,2989.6,1.67629]
[1764721661830,1.5778,2989.7,2989.6,1.67629]
[1764721662127,0.8003,2989.7,2989.6,1.67629]
[1764721662422,1.63161059,2990.5,2990.3,0.7739]
[1764721662423,1.58116117,2990.4,2990.3,0.7739]
[1764721662721,1.5778,2989.8,2989.6,2.56470174]
[1764721662928,1.5778,2989.7,2989.6,0.94109]
[1764721663128,0.8003,2989.7,2989.6,1.67629]
[1764721663633,1.5778,2989.7,2989.6,1.67629]
[1764721664527,0.8003,2989.7,2989.6,1.67629]
[1764721664730,5.2544,2990.0,2989.9,1.5091]
[1764721664929,0.8003,2989.7,2989.6,1.67629]
[1764721665529,5.2544,2990.0,2989.9,1.5091]
[1764721667529,1.5778,2989.9,2989.8,0.94108]
[1764721668120,1.5778,2989.9,2989.8,0.16718]
[1764721669929,1.5778,2989.9,2989.8,0.94108]
[1764721670131,1.5778,2989.9,2989.8,1.67628]
[1764721671836,1.5778,2989.9,2989.8,0.94108]
[1764721672129,1.5778,2989.9,2989.8,0.16718]
[1764721672829,1.5778,2989.9,2989.8,0.94108]
[1764721673132,0.8003,2989.9,2989.8,1.67628]
[1764721673323,4.7856,2990.0,2989.9,1.5091]
[1764721673721,4.0081,2990.0,2989.9,1.67628]
[1764721673926,4.7856,2990.3,2990.2,1.5091]
[1764721674127,5.54793737,2990.3,2990.2,1.67626]
[1764721674322,4.7856,2990.3,2990.2,1.67626]
[1764721674528,4.7856,2990.3,2990.2,0.16716]
[1764721675926,4.7856,2990.3,2990.2,1.67626]
[1764721677239,0.00336117,2990.4,2990.3,1.67626]
[1764721677730,2.0545,2991.0,2990.9,1.5091]
[1764721678044,1.5778,2990.9,2990.8,0.16712]
[1764721678236,1.5778,2990.9,2990.8,0.94102]
[1764721678640,1.5778,2990.9,2990.8,1.67622]
[1764721678835,1.5803921,2990.9,2990.8,1.67918273]
[1764721680742,0.8028921,2990.9,2990.8,1.67918273]
[1764721681040,0.0025921,2990.9,2990.8,1.67918273]
[1764721681235,0.8028921,2990.9,2990.8,1.67918273]
[1764721681633,0.8028921,2990.9,2990.8,4.88698273]
[1764721683229,0.0025921,2990.9,2990.8,4.88698273]
[1764721683743,0.00501387,2991.1,2991.0,1.9647]
[1764721683948,1.56791387,2991.1,2991.0,1.6166]
[1764721684144,0.00501387,2991.1,2991.0,1.8765]
[1764721684343,0.76041387,2991.1,2991.0,2.04362]
[1764721684544,1.56791387,2991.1,2991.0,1.78372]
[1764721684742,1.57067492,2991.1,2991.0,1.78372]
[1764721685236,1.5629,2990.9,2990.8,4.01606273]
[1764721685643,1.5629,2990.9,2990.8,4.82736273]
[1764721685941,0.7554,2990.9,2990.8,4.82736273]
[1764721686148,0.7554,2991.0,2990.8,3.21076273]
[1764721686355,0.7554,2991.0,2990.9,1.6166]
[1764721686655,1.5629,2991.0,2990.9,1.6166]
[1764721686854,0.00777492,2991.1,2991.0,1.8765]
[1764721687257,0.76317492,2991.1,2991.0,1.8765]
[1764721687550,2.0051,2991.0,2990.9,0.16712]
[1764721687756,2.0051,2991.0,2990.9,0.97242]
[1764721688059,2.0051,2991.0,2990.9,0.16712]
[1764721688249,2.0051,2991.0,2990.9,0.97242]
[1764721688556,2.0051,2991.0,2990.9,1.78372]
[1764721690851,0.7554,2991.0,2990.9,1.78372]
[1764721692756,2.0051,2991.0,2990.9,1.78372]
[1764721693261,2.0051,2991.0,2990.9,0.16712]
[1764721693460,1.5629,2990.9,2990.8,0.80826273]
[1764721694259,1.5629,2990.9,2990.8,1.61956273]
[1764721695357,1.5629,2990.9,2990.8,0.80826273]
[1764721695761,1.5629,2990.9,2990.8,1.61956273]
[1764721697965,1.5629,2990.9,2990.8,0.00296273]
[1764721698160,1.5629,2990.7,2990.6,0.00501387]
[1764721698356,3.01718861,2990.7,2990.6,0.00501387]
[1764721699059,2.0051,2990.5,2990.4,3.2078]
[1764721699263,2.0051,2990.5,2990.4,3.21179125]
[1764721699453,2.0051,2990.5,2990.4,4.82839125]
[1764721699649,2.0051,2990.5,2990.4,0.00399125]
[1764721702459,2.0051,2990.5,2989.7,0.16719]
[1764721702460,1.5629,2989.9,2989.8,4.0131]
[1764721702765,1.5629,2989.9,2989.8,4.8244]
[1764721703460,1.5629,2989.9,2989.8,4.82720716]
[1764721704766,1.5629,2989.9,2989.8,4.99438716]
[1764721704962,1.5629,2990.0,2989.9,1.6166]
[1764721705161,2.0051,2990.0,2989.9,1.6166]
[1764721705365,3.65,2990.5,2989.9,1.78378]
[1764721705557,1.5629,2990.1,2990.0,1.6166]
[1764721705761,1.5629,2990.0,2989.9,0.16718]
[1764721705969,1.5629,2989.9,2989.8,3.21060716]
[1764721706360,1.5629,2989.9,2989.5,3.2078]
[1764721706562,1.5629,2989.3,2989.2,4.8244]
[1764721707558,1.5629,2989.3,2989.2,4.82758139]
[1764721707959,0.76041387,2989.5,2989.4,1.6166]
[1764721708362,0.00501387,2989.5,2989.4,1.6166]
[1764721709367,0.00501387,2989.5,2989.4,1.78381]
[1764721711867,2.01011387,2989.5,2989.4,0.97251]
[1764721712070,2.01011387,2989.5,2989.4,0.16721]
[1764721712663,1.5629,2989.3,2989.2,3.21098139]
[1764721712871,0.7554,2989.3,2989.2,4.77188139]
[1764721713076,2.99655029,2989.3,2989.2,4.01628139]
[1764721713363,2.99655029,2989.3,2989.2,4.01428139]
[1764721713973,0.7554,2989.3,2989.2,4.76988139]
[1764721714272,1.5051,2989.3,2989.2,4.76988139]
[1764721716572,1.5051,2989.3,2989.2,4.01428139]
[1764721716773,1.5051,2989.3,2989.2,4.75808139]
[1764721716974,2.04821387,2989.5,2989.4,0.803]
[1764721717169,2.04821387,2989.5,2989.4,1.5468]
[1764721717677,2.04821387,2989.5,2989.4,0.803]
[1764721718079,1.601,2989.3,2989.2,4.75778139]
[1764721719977,1.601,2989.3,2989.2,3.21098139]
[1764721720177,1.601,2989.3,2989.2,4.01398139]
[1764721720782,1.601,2989.3,2989.2,4.75778139]
[1764721721280,0.7964,2989.3,2989.2,4.75778139]
[1764721721581,1.601,2989.3,2989.2,4.75778139]
[1764721721776,1.601,2989.3,2989.2,1.54998139]
[1764721724073,1.601,2989.3,2989.2,0.00318139]
[1764721724479,1.601,2989.3,2989.2,0.80618139]
[1764721725375,1.601,2988.8,2988.7,3.2078]
[1764721725578,2.041,2988.5,2988.4,1.5468]
[1764721726378,2.04363855,2988.5,2988.4,1.55066909]
[1764721726574,0.79903855,2988.5,2988.4,4.75846909]
[1764721726783,0.79903855,2988.5,2988.4,1.55066909]
[1764721727182,1.60363855,2988.5,2988.4,1.55066909]
[1764721727883,0.00263855,2988.5,2988.4,1.71792909]
[1764721728283,2.04363855,2988.5,2988.4,0.97412909]
[1764721728485,2.04363855,2988.5,2988.4,1.71792909]
[1764721728675,2.04363855,2988.5,2988.4,0.97412909]
[1764721729884,2.04363855,2988.5,2988.4,0.17112909]
[1764721730384,2.04363855,2988.5,2988.4,0.97412909]
[1764721730585,2.04363855,2988.5,2988.4,1.71792909]
[1764721730880,2.04363855,2988.5,2988.4,0.17112909]
[1764721731674,2.04363855,2988.5,2988.4,0.97412909]
[1764721732071,1.601,2988.1,2988.0,5.2122]
[1764721732681,1.601,2988.1,2988.0,4.7546]
[1764721733084,1.601,2988.1,2988.0,4.75834752]
[1764721733584,0.7964,2988.1,2988.0,4.75834752]
[1764721734290,1.601,2988.1,2988.0,4.75834752]
[1764721734488,0.7964,2988.1,2988.0,5.05844752]
[1764721734689,2.04363855,2988.5,2988.4,1.5468]
[1764721735085,1.601,2988.3,2988.2,1.71407]
[1764721735491,0.7964,2988.3,2988.2,1.71407]
[1764721735690,2.04363855,2988.5,2988.4,1.5468]
[1764721736592,3.53674731,2988.5,2988.4,0.803]
[1764721736892,3.53674731,2988.5,2988.4,1.5468]
[1764721737092,3.09674731,2988.5,2988.4,1.5468]
[1764721737288,0.00263855,2988.5,2988.4,4.92186]
[1764721737482,0.00263855,2988.5,2988.4,1.71406]
[1764721737685,3.53674731,2988.5,2988.4,0.16726]
[1764721738087,3.53674731,2988.5,2988.4,0.97026]
[1764721738288,3.53674731,2988.5,2988.4,1.71406]
[1764721738687,0.79903855,2988.5,2988.4,1.71406]
[1764721738994,0.00263855,2988.5,2988.4,1.71406]
[1764721739191,0.00263855,2988.5,2988.4,4.92077258]
[1764721740389,3.09410876,2989.1,2989.0,1.5468]
[1764721741386,3.09821086,2989.1,2989.0,1.5468]
[1764721741588,2.29361086,2989.1,2989.0,1.9983]
[1764721741993,1.49721086,2989.1,2989.0,1.9983]
[1764721742193,0.0041021,2989.1,2989.0,1.9983]
[1764721742397,1.6051021,2989.1,2989.0,1.5468]
[1764721742790,0.8005021,2989.1,2989.0,1.5468]
[1764721743087,0.0041021,2989.1,2989.0,1.9988]
[1764721743884,0.7727021,2989.1,2989.0,1.9988]
[1764721744092,3.06891086,2989.1,2989.0,0.803]
[1764721744585,3.06891086,2989.1,2988.5,0.4515]
[1764721744586,2.0592,2989.0,2988.5,0.4515]
[1764721744786,2.26170876,2988.6,2988.5,1.4909]
[1764721745692,1.5717,2988.5,2988.4,3.2078]
[1764721745899,2.0592,2988.5,2988.4,4.6987]
[1764721746487,2.0592,2988.5,2988.4,1.4909]
[1764721746695,1.5717,2988.5,2988.4,1.4909]
[1764721746893,0.7686,2988.5,2988.4,1.4909]
[1764721748499,3.06480876,2988.8,2988.7,1.4909]
[1764721748701,0.7686,2988.8,2988.7,1.4909]
[1764721748901,3.06480876,2988.8,2988.7,1.4909]
[1764721749300,2.26170876,2988.8,2988.7,1.4909]
[1764721750507,3.06480876,2988.8,2988.7,1.4909]
[1764721750708,2.26170876,2988.8,2988.7,1.4909]
[1764721751203,3.06480876,2988.8,2988.7,1.4909]
[1764721752603,2.26170876,2988.8,2988.7,1.4909]
[1764721752805,3.06480876,2988.8,2988.7,1.4909]
[1764721753698,1.5717,2988.8,2988.7,1.4909]
[1764721753900,2.0592,2989.0,2988.9,1.4909]
[1764721754094,0.7727021,2989.1,2989.0,1.9639]
[1764721754295,1.5758021,2989.1,2989.0,1.4909]
[1764721754503,3.06891086,2989.1,2989.0,1.4909]
[1764721755506,0.4875,2989.0,2988.7,1.65814]
[1764721755709,0.7727021,2989.1,2989.0,1.4909]
[1764721755909,1.5758021,2989.1,2989.0,1.4909]
[1764721756106,1.5758021,2989.1,2989.0,1.9639]
[1764721756107,0.7727021,2989.1,2989.0,1.9639]
[1764721756405,0.0041021,2989.1,2989.0,1.9639]
[1764721756609,0.7727021,2989.1,2989.0,1.9639]
[1764721757112,0.0041021,2989.1,2989.0,2.13113]
[1764721758207,1.5758021,2989.1,2989.0,1.65813]
[1764721758406,1.5758021,2989.1,2989.0,0.92523]
[1764721759011,1.5758021,2989.1,2989.0,1.65813]
[1764721759216,1.5758021,2989.1,2989.0,0.16723]
[1764721759418,2.0592,2989.0,2988.5,0.64026]
[1764721759717,2.0592,2989.0,2988.9,1.4909]
[1764721759718,3.55230876,2989.0,2988.9,1.4909]
[1764721760015,3.55230876,2989.0,2988.9,0.758]
[1764721760206,1.5717,2988.6,2988.5,2.13116]
[1764721760405,0.7686,2988.6,2988.5,2.13116]
[1764721760601,3.9764,2989.0,2988.9,1.4909]
[1764721760910,4.7795,2989.0,2988.9,1.4909]
[1764721761614,5.267,2989.0,2988.9,0.758]
[1764721761913,6.76010876,2989.0,2988.9,0.758]
[1764721762120,3.55230876,2989.0,2988.9,0.758]
[1764721763315,2.0592,2989.0,2988.9,1.4909]
[1764721764214,2.0592,2989.0,2988.9,0.758]
[1764721764418,1.5717,2988.8,2988.7,1.65814]
[1764721764716,0.7686,2988.8,2988.7,1.65814]
[1764721765010,0.0041021,2989.1,2988.8,0.16724]
[1764721765212,0.7727021,2989.1,2989.0,1.9639]
[1764721765612,0.0041021,2989.1,2989.0,1.9639]
[1764721765914,0.7727021,2989.1,2989.0,1.9639]
[1764721766908,1.5758021,2989.1,2989.0,1.4909]
[1764721767715,1.5758021,2989.1,2989.0,0.758]
[1764721768115,1.5758021,2989.1,2989.0,1.4909]
[1764721770616,1.5758021,2989.1,2989.0,0.758]
[1764721770817,2.0592,2989.0,2988.9,0.16723]
[1764721771218,2.0592,2989.0,2988.9,1.65813]
[1764721772918,0.7686,2989.0,2988.9,1.65813]
[1764721773120,0.7791021,2989.1,2989.0,1.6056]
[1764721773418,0.0041021,2989.1,2989.0,2.23783]
[1764721776220,0.00501387,2989.5,2989.4,1.77281]
[1764721776425,4.7502,2990.2,2989.5,0.465]
[1764721776724,1.5424,2989.4,2989.3,1.77281]
[1764721777122,0.775,2989.4,2989.3,1.77281]
[1764721777324,0.00318959,2989.4,2989.3,4.98061]
[1764721777622,1.19353971,2990.6,2989.8,1.6056]
[1764721777826,3.9828,2990.2,2990.1,1.77277]
[1764721778123,4.7502,2990.2,2990.1,1.77277]
[1764721778328,0.775,2990.2,2990.1,1.77277]
[1764721778713,0.77854671,2990.2,2990.1,1.77591302]
[1764721779120,0.00354671,2990.2,2990.1,1.77591302]
[1764721779717,0.77854671,2990.2,2990.1,1.77591302]
[1764721780017,1.54594671,2990.2,2990.1,0.17031302]
[1764721780221,1.54594671,2990.2,2990.1,0.79624302]
[1764721780425,1.54594671,2990.2,2990.1,1.53874302]
[1764721781226,0.77854671,2990.2,2990.1,1.53874302]
[1764721781724,1.56494671,2990.2,2990.1,1.53874302]
[1764721783116,0.00354671,2990.2,2990.1,1.70591302]
[1764721783320,0.00501387,2990.4,2990.3,1.69896]
[1764721783522,0.80481387,2990.4,2990.3,4.90676]
[1764721784122,0.00501387,2990.4,2990.3,4.90676]
[1764721784432,0.00761073,2990.4,2990.3,1.69896]
[1764721784628,0.00761073,2990.4,2990.3,4.90676]
[1764721785222,3.2078,2990.9,2990.8,1.5318]
[1764721785532,4.794,2990.9,2990.8,1.5318]
[1764721786030,0.7998,2990.9,2990.8,1.69893]
[1764721786223,1.590453,2990.9,2990.8,1.69893]
[1764721787130,1.590453,2990.9,2990.5,1.5318]
[1764721787131,1.5862,2990.6,2990.5,1.5318]
[1764721787522,1.590453,2990.9,2990.8,1.5318]
[1764721787724,1.590453,2990.9,2990.8,0.7893]
[1764721788536,1.590453,2990.9,2990.8,1.5318]
[1764721789236,1.590453,2990.9,2990.6,1.69894]
[1764721789237,0.7998,2990.7,2990.6,1.69894]
[1764721791136,1.5862,2990.7,2990.6,1.69894]
[1764721791930,1.5862,2990.7,2990.6,0.16714]
[1764721792832,1.5862,2990.7,2990.6,0.95644]
[1764721793134,1.5862,2990.7,2990.6,0.16714]
[1764721793336,1.5862,2990.7,2990.6,0.95644]
[1764721794234,1.5862,2990.7,2990.6,1.69894]
[1764721794536,0.7998,2990.7,2990.6,1.69894]
[1764721795436,1.590453,2990.9,2990.8,1.5318]
[1764721795632,1.590453,2990.9,2990.8,1.69893]
[1764721795840,0.804053,2990.9,2990.8,1.69893]
[1764721796031,0.004253,2990.9,2990.8,1.69893]
[1764721797537,1.590453,2990.9,2990.8,0.95643]
[1764721797942,1.590453,2990.9,2990.8,1.69893]
[1764721798837,1.590453,2990.9,2990.8,0.16713]
[1764721799340,1.590453,2990.9,2990.8,0.95643]
[1764721800239,2.0517,2990.5,2990.4,4.7396]
[1764721800445,2.0517,2990.5,2990.4,3.9971]
[1764721800638,1.5862,2990.3,2990.2,1.69896]
[1764721800947,1.5862,2990.2,2990.1,0.00314302]
[1764721801144,1.5862,2989.9,2989.8,3.2078]
[1764721801441,1.5862,2989.8,2989.7,0.95649]
[1764721801743,1.5862,2989.8,2989.7,1.69899]
[1764721802136,1.5862,2989.8,2989.7,1.70155867]
[1764721802538,0.4655,2990.5,2990.0,0.4421]
[1764721802743,1.5862,2990.1,2990.0,1.5318]
[1764721803236,0.7992,2990.1,2990.0,1.9346]
[1764721803442,1.5725,2990.1,2990.0,1.5322]
[1764721803642,1.5725,2990.1,2990.0,0.7595]
[1764721803840,2.0297,2990.0,2989.9,0.16718]
[1764721804242,2.0297,2990.0,2989.9,0.92668]
[1764721804446,2.0297,2990.0,2989.9,1.69938]
[1764721804744,2.0297,2990.0,2989.9,0.92668]
[1764721804945,2.0297,2990.0,2989.9,0.16718]
[1764721805245,2.0297,2990.0,2989.9,1.69938]
[1764721805745,1.5725,2990.0,2989.9,1.69938]
[1764721806046,1.5725,2990.0,2989.9,0.16718]
[1764721806047,2.0297,2990.0,2989.9,0.16718]
[1764721806945,0.7992,2990.0,2989.9,1.69938]
[1764721807246,2.0297,2990.0,2989.9,0.92668]
[1764721807543,2.0297,2990.0,2989.9,0.16718]
[1764721807943,2.0297,2990.0,2989.7,3.21036867]
[1764721807944,1.5725,2989.8,2989.7,3.21036867]
[1764721808245,1.5725,2989.8,2989.7,0.00256867]
[1764721810138,4.7803,2989.8,2989.7,0.00256867]
[1764721814841,4.7803,2989.8,2989.1,3.21281387]
[1764721815036,1.5725,2989.2,2989.1,4.74501387]
[1764721815346,0.7992,2989.2,2989.1,4.74501387]
[1764721815549,1.5725,2989.2,2989.1,4.74501387]
[1764721815946,1.5725,2989.2,2989.1,1.54090872]
[1764721816948,1.5725,2989.2,2989.1,0.00870872]
[1764721820347,4.7803,2989.2,2989.1,0.00870872]
[1764721826358,1.5725,2988.5,2988.4,4.90726]
[1764721826850,2.0297,2988.5,2988.4,4.90726]
[1764721827055,0.7992,2988.5,2988.4,4.90726]
[1764721827257,1.5725,2988.5,2988.4,4.90726]
[1764721827449,2.03233323,2988.5,2988.4,3.37903806]
[1764721827655,0.00263323,2988.5,2988.4,1.70343806]
[1764721827847,1.57513323,2988.5,2988.4,1.70343806]
[1764721828048,0.00263323,2988.5,2988.4,10.91123806]
[1764721828248,0.7992,2988.5,2988.4,4.91123806]
[1764721828448,2.0297,2988.5,2988.4,0.17123806]
[1764721828649,2.0297,2988.5,2988.4,0.76347806]
[1764721829256,2.03291532,2988.5,2988.4,0.76347806]
[1764721829657,2.03291532,2988.5,2988.2,0.00501387]
[1764721829658,1.5725,2988.3,2988.2,0.00501387]
[1764721829860,3.06531555,2988.3,2988.2,0.00501387]
[1764721830062,3.06531555,2988.3,2988.2,0.76451387]
[1764721830258,3.06531555,2988.3,2988.2,0.00501387]
[1764721830662,3.06531555,2988.3,2988.2,0.00927133]
[1764721832749,1.5725,2988.3,2988.2,1.52617133]
[1764721832959,1.5328,2988.3,2988.2,0.00927133]
[1764721833262,0.75171532,2988.5,2988.4,1.5324]
[1764721833662,3.45483087,2988.5,2988.4,0.775]
[1764721833855,3.45483087,2988.5,2988.3,0.16727]
[1764721833856,1.4821,2988.4,2988.3,0.94227]
[1764721834258,1.4821,2988.4,2988.3,0.16727]
[1764721834659,6.18271555,2988.4,2988.3,0.16727]
[1764721835056,1.52,2988.3,2988.2,0.00927133]
[1764721836864,0.7688,2988.4,2988.3,1.5777]
[1764721837062,1.52,2988.4,2988.3,1.5777]
[1764721837260,1.52,2988.3,2988.2,0.00927133]
[1764721839164,1.52,2988.3,2988.2,1.58697133]
[1764721839364,1.52,2988.3,2988.2,0.79367133]
[1764721839667,1.52,2988.3,2988.2,0.00927133]
[1764721843374,0.7688,2988.3,2988.2,0.79367133]
[1764721843672,1.52,2988.3,2988.2,0.00927133]
[1764721843971,1.52,2988.3,2988.2,0.79367133]
[1764721844176,1.52,2988.3,2988.2,0.00927133]
[1764721845470,1.52,2988.3,2987.5,3.37511]
[1764721845471,1.52,2987.6,2987.5,3.37511]
[1764721845673,1.52,2987.2,2987.1,1.74503]
[1764721845877,1.9597,2987.5,2987.4,1.5777]
[1764721846071,1.9597,2987.5,2987.2,0.16733]